fUSD/lending_fUSD_20260517
["ID","MTS","AMOUNT","RATE_DAILY","PERIOD"]
[422445270,1778951439000,-774.69070574,0.00014999,2]
[422445273,1778951439000,-774.69070574,0.00014999,2]
[422445272,1778951439000,-774.69070574,0.00014999,2]
[422445274,1778951439000,-774.69070574,0.00014999,2]
[422445275,1778951439000,-774.69070574,0.00014999,2]
[422445276,1778951439000,-774.69070574,0.00014999,2]
[422445278,1778951439000,-774.69070574,0.00014999,2]
[422445277,1778951439000,-774.69070574,0.00014999,2]
[422445279,1778951439000,-774.69070574,0.00014999,2]
[422445280,1778951439000,-774.69070574,0.00014999,2]
[422445283,1778951439000,-774.69070574,0.00014999,2]
[422445281,1778951439000,-774.69070574,0.00014999,2]
[422445282,1778951439000,-774.69070574,0.00014999,2]
[422445285,1778951439000,-774.69070574,0.00014999,2]
[422445284,1778951439000,-774.69070574,0.00014999,2]
[422445288,1778951439000,-774.69070574,0.00014999,2]
[422445286,1778951439000,-774.69070574,0.00014999,2]
[422445287,1778951439000,-774.69070574,0.00014999,2]
[422445289,1778951439000,-774.69070574,0.00014999,2]
[422445290,1778951439000,-774.69070574,0.00014999,2]
[422445291,1778951439000,-774.69070574,0.00014999,2]
[422445292,1778951439000,-774.69070574,0.00014999,2]
[422445232,1778951439000,-500.0,0.00014999,2]
[422445265,1778951439000,-774.69070574,0.00014999,2]
[422445262,1778951439000,-774.69070574,0.00014999,2]
[422445266,1778951439000,-774.69070574,0.00014999,2]
[422445264,1778951439000,-774.69070574,0.00014999,2]
[422445234,1778951439000,-500.0,0.00014999,2]
[422445237,1778951439000,-258.77603509,0.00014999,2]
[422445236,1778951439000,-500.0,0.00014999,2]
[422445238,1778951439000,-219.269509,0.00014999,2]
[422445235,1778951439000,-500.0,0.00014999,2]
[422445233,1778951439000,-500.0,0.00014999,2]
[422445239,1778951439000,-500.0,0.00014999,2]
[422445240,1778951439000,-500.0,0.00014999,2]
[422445242,1778951439000,-774.69070574,0.00014999,2]
[422445241,1778951439000,-500.0,0.00014999,2]
[422445243,1778951439000,-537.93328249,0.00014999,2]
[422445263,1778951439000,-500.0,0.00014999,2]
[422445245,1778951439000,-414.52489485,0.00014999,2]
[422445244,1778951439000,-774.69070574,0.00014999,2]
[422445246,1778951439000,-500.0,0.00014999,2]
[422445247,1778951439000,-155.85942528,0.00014999,2]
[422445260,1778951439000,-500.0,0.00014999,2]
[422445258,1778951439000,-500.0,0.00014999,2]
[422445248,1778951439000,-774.69070574,0.00014999,2]
[422445257,1778951439000,-774.69070574,0.00014999,2]
[422445256,1778951439000,-266.96579501,0.00014999,2]
[422445255,1778951439000,-774.69070574,0.00014999,2]
[422445259,1778951439000,-774.69070574,0.00014999,2]
[422445253,1778951439000,-774.69070574,0.00014999,2]
[422445252,1778951439000,-500.0,0.00014999,2]
[422445251,1778951439000,-774.69070574,0.00014999,2]
[422445250,1778951439000,-500.0,0.00014999,2]
[422445249,1778951439000,-774.69070574,0.00014999,2]
[422445254,1778951439000,-500.0,0.00014999,2]
[422445300,1778951440000,-774.69070574,0.00014999,2]
[422445293,1778951440000,-774.69070574,0.00014999,2]
[422445294,1778951440000,-774.69070574,0.00014999,2]
[422445295,1778951440000,-774.69070574,0.00014999,2]
[422445297,1778951440000,-774.69070574,0.00014999,2]
[422445296,1778951440000,-774.69070574,0.00014999,2]
[422445301,1778951440000,-774.69070574,0.00014999,2]
[422445302,1778951440000,-3562574.93618587,0.00015,2]
[422445298,1778951440000,-774.69070574,0.00014999,2]
[422445303,1778951440000,-2076.26775754,0.00015,2]
[422445304,1778951440000,-8083.22155272,0.00015,2]
[422445305,1778951440000,-514081.66793986,0.00015,2]
[422445310,1778951440000,-247.42052359,0.000149,2]
[422445311,1778951440000,-876.64104711,0.00015,2]
[422445299,1778951440000,-774.69070574,0.00014999,2]
[422445312,1778951441000,-39106.5,0.00015,2]
[422445317,1778951443000,-5530.0,0.00015,2]
[422445318,1778951444000,-476530.04065965,0.00015,2]
[422445322,1778951446000,152.0,0.00010095,2]
[422445325,1778951447000,-16978.47030588,0.0001497,2]
[422445324,1778951447000,-12489.2643289,0.0001497,2]
[422445323,1778951447000,-169.8856711,0.000149,2]
[422445372,1778951887000,151.08,5.908e-05,2]
[422445373,1778951887000,151.08,8.746e-05,2]
[422445376,1778952076000,-152.0,0.00011332,2]
[422445382,1778952402000,-937.97644746,0.00010607,2]
[422445386,1778952465000,173.86,8.562e-05,2]
[422445387,1778952568000,-3864.0665,0.00010471,2]
[422445388,1778952595000,-2000.0,0.00010392,2]
[422445389,1778952595000,-393.190361,0.00010418,2]
[422445390,1778952595000,-2927.0835,0.00010471,2]
[422445391,1778952595000,-2843.95,0.00010507,2]
[422445392,1778952595000,-362.81183438,0.00010533,2]
[422445393,1778952595000,-300.0,0.00010578,2]
[422445394,1778952595000,-500.0,0.00010579,2]
[422445396,1778952595000,-261.80328148,0.00010634,2]
[422445395,1778952595000,-2204.49355254,0.00010607,2]
[422445398,1778952595000,-299.99,0.0001066,2]
[422445397,1778952595000,-302.57,0.0001066,2]
[422445401,1778952595000,-164.25,0.00010703,2]
[422445399,1778952595000,-432.84,0.00010679,2]
[422445408,1778952595000,-215.03962261,0.00011423,2]
[422445406,1778952595000,-152.0,0.00011336,2]
[422445407,1778952595000,-193.06,0.00011388,2]
[422445409,1778952595000,-1150.81,0.00011444,2]
[422445404,1778952595000,-150.0,0.00011073,2]
[422445403,1778952595000,-362.81183438,0.00011,2]
[422445402,1778952595000,-1150.81,0.00010899,2]
[422445400,1778952595000,-9999.99,0.00010679,2]
[422445405,1778952595000,-1150.81,0.00011171,2]
[422445420,1778952596000,-999.99,0.00011565,2]
[422445428,1778952596000,-33179.6252,0.00011566,2]
[422445427,1778952596000,-209.10767137,0.00011566,2]
[422445425,1778952596000,-3231.46682394,0.00011566,2]
[422445426,1778952596000,-2124.62961672,0.00011566,2]
[422445423,1778952596000,-24999.99,0.00011566,2]
[422445424,1778952596000,-792.74643942,0.00011566,2]
[422445422,1778952596000,-2830.00724574,0.00011565,2]
[422445421,1778952596000,-9999.99,0.00011565,2]
[422445430,1778952596000,-5000.0,0.00011566,2]
[422445419,1778952596000,-9999.99,0.00011565,2]
[422445416,1778952596000,-2157.578,0.00011564,2]
[422445417,1778952596000,-174.613,0.00011564,2]
[422445414,1778952596000,-1200.0,0.00011546,2]
[422445415,1778952596000,-1000.0,0.00011564,2]
[422445413,1778952596000,-200.0,0.00011541,2]
[422445411,1778952596000,-1721.50377597,0.000115,2]
[422445412,1778952596000,-250.0,0.00011518,2]
[422445410,1778952596000,-362.81183438,0.00011466,2]
[422445418,1778952596000,-150.99,0.00011565,2]
[422445431,1778952596000,-2500.0,0.00011566,2]
[422445447,1778952596000,-500.0,0.00011665,2]
[422445433,1778952596000,-637.96068169,0.00011568,2]
[422445450,1778952596000,-500.0,0.00011665,2]
[422445452,1778952596000,-500.0,0.00011665,2]
[422445451,1778952596000,-500.0,0.00011665,2]
[422445449,1778952596000,-500.0,0.00011665,2]
[422445448,1778952596000,-500.0,0.00011665,2]
[422445446,1778952596000,-500.0,0.00011665,2]
[422445445,1778952596000,-500.0,0.00011665,2]
[422445442,1778952596000,-500.0,0.00011665,2]
[422445444,1778952596000,-500.0,0.00011665,2]
[422445429,1778952596000,-2000.0,0.00011566,2]
[422445441,1778952596000,-500.0,0.00011665,2]
[422445432,1778952596000,-164.94701572,0.00011568,2]
[422445435,1778952596000,-420.0,0.00011629,2]
[422445434,1778952596000,-151.08,0.00011584,2]
[422445436,1778952596000,-474.10731056,0.00011665,2]
[422445443,1778952596000,-500.0,0.00011665,2]
[422445439,1778952596000,-500.0,0.00011665,2]
[422445438,1778952596000,-500.0,0.00011665,2]
[422445440,1778952596000,-500.0,0.00011665,2]
[422445437,1778952596000,-500.0,0.00011665,2]
[422445470,1778952597000,-500.0,0.00011665,2]
[422445468,1778952597000,-500.0,0.00011665,2]
[422445467,1778952597000,-500.0,0.00011665,2]
[422445465,1778952597000,-500.0,0.00011665,2]
[422445464,1778952597000,-500.0,0.00011665,2]
[422445463,1778952597000,-500.0,0.00011665,2]
[422445461,1778952597000,-500.0,0.00011665,2]
[422445460,1778952597000,-500.0,0.00011665,2]
[422445469,1778952597000,-500.0,0.00011665,2]
[422445459,1778952597000,-500.0,0.00011665,2]
[422445458,1778952597000,-500.0,0.00011665,2]
[422445457,1778952597000,-500.0,0.00011665,2]
[422445456,1778952597000,-500.0,0.00011665,2]
[422445455,1778952597000,-500.0,0.00011665,2]
[422445454,1778952597000,-500.0,0.00011665,2]
[422445453,1778952597000,-500.0,0.00011665,2]
[422445462,1778952597000,-500.0,0.00011665,2]
[422445472,1778952597000,-500.0,0.00011665,2]
[422445466,1778952597000,-500.0,0.00011665,2]
[422445474,1778952597000,-500.0,0.00011665,2]
[422445492,1778952597000,-500.0,0.00011665,2]
[422445491,1778952597000,-500.0,0.00011665,2]
[422445490,1778952597000,-500.0,0.00011665,2]
[422445473,1778952597000,-500.0,0.00011665,2]
[422445487,1778952597000,-271.77003535,0.00011665,2]
[422445488,1778952597000,-500.0,0.00011665,2]
[422445486,1778952597000,-500.0,0.00011665,2]
[422445485,1778952597000,-500.0,0.00011665,2]
[422445482,1778952597000,-500.0,0.00011665,2]
[422445489,1778952597000,-500.0,0.00011665,2]
[422445483,1778952597000,-500.0,0.00011665,2]
[422445484,1778952597000,-500.0,0.00011665,2]
[422445475,1778952597000,-500.0,0.00011665,2]
[422445476,1778952597000,-500.0,0.00011665,2]
[422445477,1778952597000,-500.0,0.00011665,2]
[422445471,1778952597000,-500.0,0.00011665,2]
[422445478,1778952597000,-500.0,0.00011665,2]
[422445480,1778952597000,-500.0,0.00011665,2]
[422445481,1778952597000,-500.0,0.00011665,2]
[422445479,1778952597000,-500.0,0.00011665,2]
[422445505,1778952598000,-500.0,0.00011665,2]
[422445501,1778952598000,-500.0,0.00011665,2]
[422445503,1778952598000,-500.0,0.00011665,2]
[422445502,1778952598000,-300.0,0.00011665,2]
[422445500,1778952598000,-500.0,0.00011665,2]
[422445497,1778952598000,-500.0,0.00011665,2]
[422445498,1778952598000,-500.0,0.00011665,2]
[422445496,1778952598000,-500.0,0.00011665,2]
[422445494,1778952598000,-500.0,0.00011665,2]
[422445493,1778952598000,-500.0,0.00011665,2]
[422445504,1778952598000,-500.0,0.00011665,2]
[422445499,1778952598000,-500.0,0.00011665,2]
[422445495,1778952598000,-500.0,0.00011665,2]
[422445506,1778952598000,-500.0,0.00011665,2]
[422445508,1778952598000,-500.0,0.00011665,2]
[422445507,1778952598000,-500.0,0.00011665,2]
[422445519,1778952598000,-388654.48310555,0.00011666,2]
[422445517,1778952598000,-500.0,0.00011665,2]
[422445518,1778952598000,-500.0,0.00011665,2]
[422445516,1778952598000,-500.0,0.00011665,2]
[422445514,1778952598000,-500.0,0.00011665,2]
[422445512,1778952598000,-500.0,0.00011665,2]
[422445515,1778952598000,-500.0,0.00011665,2]
[422445509,1778952598000,-500.0,0.00011665,2]
[422445510,1778952598000,-500.0,0.00011665,2]
[422445513,1778952598000,-500.0,0.00011665,2]
[422445511,1778952598000,-500.0,0.00011665,2]
[422445524,1778952631000,-150.0,0.00010574,2]
[422445525,1778952631000,-169.24081573,0.00010627,2]
[422445526,1778952631000,-15.67506789,0.00010627,2]
[422445528,1778952631000,-250.0,0.00011631,2]
[422445527,1778952631000,-263.0,0.00010679,2]
[422445531,1778952631000,-300.0,0.00011664,2]
[422445534,1778952631000,-1434.16444263,0.00011665,2]
[422445532,1778952631000,-150.0,0.00011665,2]
[422445533,1778952631000,-1590.92179969,0.00011665,2]
[422445535,1778952631000,-200.0,0.00011666,2]
[422445536,1778952631000,-109120.86156432,0.00011666,2]
[422445537,1778952631000,-561.46356,0.00011666,2]
[422445530,1778952631000,-300.0,0.00011664,2]
[422445529,1778952631000,-1200.0,0.00011664,2]
[422445561,1778952637000,-28283.48132497,0.00011666,2]
[422445560,1778952637000,-670.07279054,0.00011666,2]
[422445606,1778952643000,-423.7050128,0.00011666,2]
[422445613,1778952648000,-40344.45851609,0.00011666,2]
[422445614,1778952690000,167.35,0.00028986,120]
[422445616,1778952691000,1008.18692932,0.00030136,120]
[422445620,1778952747000,614.06,6.544e-05,2]
[422445619,1778952747000,614.06,6.229e-05,2]
[422445621,1778952748000,561.91588836,6.859e-05,2]
[422445622,1778952748000,52.14411164,6.859e-05,2]
[422445625,1778952748000,614.06,7.804e-05,2]
[422445624,1778952748000,614.06,7.489e-05,2]
[422445623,1778952748000,614.06,7.174e-05,2]
[422445629,1778952749000,614.06,9.064e-05,2]
[422445628,1778952749000,614.06,8.749e-05,2]
[422445627,1778952749000,614.06,8.434e-05,2]
[422445626,1778952749000,614.06,8.119e-05,2]
[422445633,1778952750000,614.06,0.00010009,2]
[422445631,1778952750000,614.06,9.694e-05,2]
[422445630,1778952750000,614.06,9.379e-05,2]
[422445634,1778952760000,-508.70319866,0.00010324,2]
[422445635,1778952830000,500.0,0.0003013,120]
[422445636,1778952865000,-105.35680134,0.00010324,2]
[422445637,1778952865000,-55.57319866,0.00010639,2]
[422445639,1778952875000,300.0,0.0003,120]
[422445640,1778952921000,800.0,0.0003,120]
[422445641,1778952936000,200.0,0.0003,120]
[422445646,1778953155000,-172.74871636,0.00010347,2]
[422445645,1778953155000,-300.0,0.00010347,2]
[422445643,1778953155000,-1740.997172,0.00010259,2]
[422445644,1778953155000,-1593.51,0.00010311,2]
[422445648,1778953161000,-9872.74871636,0.00010348,2]
[422445647,1778953161000,-127.25128364,0.00010347,2]
[422445649,1778953192000,1844.69,0.00010073,2]
[422445650,1778953223000,162.17,0.0001006,2]
[422445651,1778953227000,196.0,0.00010096,2]
[422445660,1778953238000,-26.71,0.00010348,2]
[422445659,1778953238000,-300.0,0.00010347,2]
[422445658,1778953238000,-1200.0,0.00010347,2]
[422445656,1778953238000,-283.51,0.00010198,2]
[422445657,1778953238000,-1185.78,0.00010198,2]
[422445655,1778953238000,-200.0,0.00010198,2]
[422445661,1778953239000,500.0,9.992e-05,2]
[422445662,1778953256000,544.77,9.994e-05,2]
[422445663,1778953277000,2766.92,9.99e-05,2]
[422445664,1778953295000,18167.45,0.00010003,2]
[422445667,1778953433000,261.25,9.982e-05,2]
[422445668,1778953453000,2000.0,9.982e-05,2]
[422445670,1778953483000,434.97505537,0.00030136,120]
[422445671,1778953498000,694.53,9.799e-05,2]
[422445672,1778953512000,2410.28,9.791e-05,2]
[422445673,1778953553000,255.74,4.978e-05,2]
[422445674,1778953553000,255.74,5.229e-05,2]
[422445677,1778953553000,255.74,5.984e-05,2]
[422445676,1778953553000,255.74,5.733e-05,2]
[422445675,1778953553000,255.74,5.481e-05,2]
[422445682,1778953554000,255.74,7.243e-05,2]
[422445681,1778953554000,255.74,6.991e-05,2]
[422445680,1778953554000,255.74,6.739e-05,2]
[422445679,1778953554000,255.74,6.488e-05,2]
[422445678,1778953554000,255.74,6.236e-05,2]
[422445686,1778953555000,255.74,8.25e-05,2]
[422445685,1778953555000,255.74,7.998e-05,2]
[422445684,1778953555000,255.74,7.746e-05,2]
[422445683,1778953555000,255.74,7.495e-05,2]
[422445687,1778953556000,255.74,8.501e-05,2]
[422445688,1778953556000,255.74,8.753e-05,2]
[422445689,1778953556000,255.74,9.005e-05,2]
[422445690,1778953556000,255.74,9.256e-05,2]
[422445691,1778953556000,255.74,9.508e-05,2]
[422445692,1778953557000,255.74,9.76e-05,2]
[422445695,1778953590000,-177.84329321,0.00010248,2]
[422445694,1778953590000,-230.17270789,0.00010248,2]
[422445697,1778953615000,171.45,9.844e-05,2]
[422445701,1778953645000,-151.58,0.00010248,2]
[422445703,1778953684000,167.55,9.995e-05,2]
[422445704,1778953688000,89957.78,9.84e-05,2]
[422445705,1778953689000,-160.93,0.00010122,2]
[422445706,1778953716000,627.58,9.992e-05,2]
[422445708,1778953750000,160.93,0.00010071,2]
[422445709,1778953752000,500.0,9.777e-05,2]
[422445710,1778953760000,153.0,0.00030137,120]
[422445713,1778953763000,-153.44847192,0.00010247,2]
[422445712,1778953763000,-184.03572266,0.00010122,2]
[422445714,1778953763000,-170.57670679,0.00010248,2]
[422445717,1778953763000,-153.44847192,0.00010327,2]
[422445718,1778953763000,-482.35798079,0.00010347,2]
[422445716,1778953763000,-153.44847192,0.00010287,2]
[422445715,1778953763000,-250.0,0.00010268,2]
[422445735,1778953831000,-55740.02162868,0.00010417,2]
[422445726,1778953831000,-1200.0,0.00010101,2]
[422445728,1778953831000,-3230.9504,0.00010102,2]
[422445727,1778953831000,-828.0696,0.00010102,2]
[422445729,1778953831000,-4271.59,0.00010102,2]
[422445731,1778953831000,-10960.56128364,0.00010348,2]
[422445730,1778953831000,-1200.0,0.00010347,2]
[422445732,1778953831000,-166.68,0.00010374,2]
[422445734,1778953831000,-150.0,0.00010416,2]
[422445740,1778953831000,-10553.34,0.0001046,2]
[422445733,1778953831000,-160.0,0.00010379,2]
[422445739,1778953831000,-1852.42,0.0001046,2]
[422445738,1778953831000,-9999.99,0.00010453,2]
[422445737,1778953831000,-1185.78,0.00010453,2]
[422445741,1778953831000,-6173.05,0.0001046,2]
[422445743,1778953831000,-150.99,0.0001046,2]
[422445742,1778953831000,-999.99,0.0001046,2]
[422445744,1778953831000,-299.99,0.0001046,2]
[422445745,1778953831000,-218.88,0.00010495,2]
[422445746,1778953831000,-1000.0,0.0001053,2]
[422445747,1778953831000,-2500.0,0.0001055,2]
[422445736,1778953831000,-95913.55,0.00010427,2]
[422445794,1778953832000,-523.33992128,0.0001155,2]
[422445793,1778953832000,-500.0,0.0001155,2]
[422445788,1778953832000,-500.0,0.0001155,2]
[422445790,1778953832000,-500.0,0.0001155,2]
[422445791,1778953832000,-523.33992128,0.0001155,2]
[422445783,1778953832000,-500.0,0.0001155,2]
[422445799,1778953832000,-500.0,0.0001155,2]
[422445787,1778953832000,-500.0,0.0001155,2]
[422445792,1778953832000,-500.0,0.0001155,2]
[422445781,1778953832000,-500.0,0.0001155,2]
[422445789,1778953832000,-500.0,0.0001155,2]
[422445796,1778953832000,-500.0,0.0001155,2]
[422445804,1778953832000,-500.0,0.0001155,2]
[422445798,1778953832000,-500.0,0.0001155,2]
[422445801,1778953832000,-500.0,0.0001155,2]
[422445811,1778953832000,-500.0,0.0001155,2]
[422445784,1778953832000,-500.0,0.0001155,2]
[422445805,1778953832000,-500.0,0.0001155,2]
[422445800,1778953832000,-523.33992128,0.0001155,2]
[422445802,1778953832000,-500.0,0.0001155,2]
[422445803,1778953832000,-523.33992128,0.0001155,2]
[422445806,1778953832000,-523.33992128,0.0001155,2]
[422445807,1778953832000,-500.0,0.0001155,2]
[422445809,1778953832000,-523.33992128,0.0001155,2]
[422445810,1778953832000,-500.0,0.0001155,2]
[422445808,1778953832000,-500.0,0.0001155,2]
[422445795,1778953832000,-500.0,0.0001155,2]
[422445785,1778953832000,-500.0,0.0001155,2]
[422445778,1778953832000,-7191.62079838,0.00011454,2]
[422445786,1778953832000,-257.17700354,0.0001155,2]
[422445812,1778953832000,-523.33992128,0.0001155,2]
[422445748,1778953832000,-1185.78,0.00010708,2]
[422445759,1778953832000,-3858.13878895,0.00011099,2]
[422445761,1778953832000,-3858.13878895,0.00011099,2]
[422445762,1778953832000,-1680.0,0.00011111,2]
[422445763,1778953832000,-252.42,0.00011111,2]
[422445764,1778953832000,-230.65,0.00011114,2]
[422445749,1778953832000,-166.68,0.00010802,2]
[422445751,1778953832000,-150.0,0.00010959,2]
[422445753,1778953832000,-318.5839688,0.00010962,2]
[422445755,1778953832000,-1185.78,0.00010963,2]
[422445757,1778953832000,-500.0,0.00010995,2]
[422445766,1778953832000,-2000.0,0.00011229,2]
[422445765,1778953832000,-1185.78,0.00011218,2]
[422445767,1778953832000,-166.68,0.0001123,2]
[422445768,1778953832000,-250.0,0.00011273,2]
[422445772,1778953832000,-679.49694804,0.00011354,2]
[422445769,1778953832000,-250.0,0.00011273,2]
[422445771,1778953832000,-5000.0,0.00011347,2]
[422445774,1778953832000,-3091.76177167,0.00011354,2]
[422445773,1778953832000,-28069.36075189,0.00011354,2]
[422445770,1778953832000,-2388.95683198,0.00011273,2]
[422445775,1778953832000,-3858.13878895,0.00011363,2]
[422445777,1778953832000,-255.0,0.00011437,2]
[422445776,1778953832000,-177.29111731,0.00011437,2]
[422445779,1778953832000,-171.45,0.00011484,2]
[422445780,1778953832000,-8707.18513235,0.0001155,2]
[422445782,1778953832000,-500.0,0.0001155,2]
[422445813,1778953832000,-500.0,0.0001155,2]
[422445797,1778953832000,-523.33992128,0.0001155,2]
[422445817,1778953832000,-500.0,0.0001155,2]
[422445850,1778953832000,-500.0,0.0001155,2]
[422445847,1778953832000,-500.0,0.0001155,2]
[422445846,1778953832000,-500.0,0.0001155,2]
[422445851,1778953832000,-523.33992128,0.0001155,2]
[422445852,1778953832000,-500.0,0.0001155,2]
[422445856,1778953832000,-564.19997084,0.0001155,2]
[422445854,1778953832000,-500.0,0.0001155,2]
[422445858,1778953832000,-564.19997084,0.0001155,2]
[422445855,1778953832000,-192.59991253,0.0001155,2]
[422445861,1778953832000,-1344.70145887,0.00011551,2]
[422445859,1778953832000,-977803.92542964,0.00011551,2]
[422445853,1778953832000,-500.0,0.0001155,2]
[422445860,1778953832000,-105923.29232409,0.00011551,2]
[422445862,1778953832000,-30657.494,0.00011566,2]
[422445857,1778953832000,-564.19997084,0.0001155,2]
[422445863,1778953832000,-1124.0615,0.00011566,2]
[422445865,1778953832000,-215.03962261,0.00011632,2]
[422445866,1778953832000,-166.68,0.00011658,2]
[422445868,1778953832000,-1019.1162802,0.00011663,2]
[422445864,1778953832000,-316.22976108,0.00011599,2]
[422445867,1778953832000,-132192.8887507,0.00011663,2]
[422445873,1778953832000,-1877.67502266,0.00011665,2]
[422445872,1778953832000,-3557.0630921,0.00011665,2]
[422445869,1778953832000,-151.0,0.00011663,2]
[422445870,1778953832000,-27262.82949755,0.00011664,2]
[422445874,1778953832000,-3017.7961671,0.00011665,2]
[422445815,1778953832000,-500.0,0.0001155,2]
[422445842,1778953832000,-523.33992128,0.0001155,2]
[422445841,1778953832000,-500.0,0.0001155,2]
[422445848,1778953832000,-523.33992128,0.0001155,2]
[422445844,1778953832000,-500.0,0.0001155,2]
[422445816,1778953832000,-500.0,0.0001155,2]
[422445814,1778953832000,-523.33992128,0.0001155,2]
[422445818,1778953832000,-523.33992128,0.0001155,2]
[422445825,1778953832000,-500.0,0.0001155,2]
[422445819,1778953832000,-500.0,0.0001155,2]
[422445821,1778953832000,-523.33992128,0.0001155,2]
[422445823,1778953832000,-500.0,0.0001155,2]
[422445822,1778953832000,-500.0,0.0001155,2]
[422445820,1778953832000,-500.0,0.0001155,2]
[422445843,1778953832000,-500.0,0.0001155,2]
[422445827,1778953832000,-523.33992128,0.0001155,2]
[422445837,1778953832000,-500.0,0.0001155,2]
[422445828,1778953832000,-500.0,0.0001155,2]
[422445838,1778953832000,-500.0,0.0001155,2]
[422445824,1778953832000,-523.33992128,0.0001155,2]
[422445826,1778953832000,-500.0,0.0001155,2]
[422445840,1778953832000,-500.0,0.0001155,2]
[422445871,1778953832000,-175802.79453505,0.00011664,2]
[422445849,1778953832000,-500.0,0.0001155,2]
[422445839,1778953832000,-523.33992128,0.0001155,2]
[422445835,1778953832000,-500.0,0.0001155,2]
[422445836,1778953832000,-523.33992128,0.0001155,2]
[422445845,1778953832000,-523.33992128,0.0001155,2]
[422445834,1778953832000,-500.0,0.0001155,2]
[422445832,1778953832000,-500.0,0.0001155,2]
[422445831,1778953832000,-500.0,0.0001155,2]
[422445830,1778953832000,-523.33992128,0.0001155,2]
[422445829,1778953832000,-500.0,0.0001155,2]
[422445833,1778953832000,-523.33992128,0.0001155,2]
[422445884,1778953833000,-3858.13878895,0.00012374,2]
[422445883,1778953833000,-167.35,0.00012343,2]
[422445880,1778953833000,-28069.36075181,0.00012142,2]
[422445878,1778953833000,-3858.13878895,0.00011869,2]
[422445881,1778953833000,-2351.0,0.00012222,2]
[422445879,1778953833000,-166.68,0.00012086,2]
[422445877,1778953833000,-208.44072055,0.0001183,2]
[422445875,1778953833000,-2569.09150242,0.00011691,2]
[422445876,1778953833000,-28069.36075181,0.00011748,2]
[422445885,1778953833000,-2000.0,0.00012477,2]
[422445882,1778953833000,-181.92,0.00012329,2]
[422445888,1778953833000,-28069.36075181,0.00012536,2]
[422445892,1778953833000,-171.45,0.00013125,2]
[422445889,1778953833000,-162.17,0.00012574,2]
[422445886,1778953833000,-152.0,0.00012506,2]
[422445890,1778953833000,-3858.13878895,0.00012879,2]
[422445891,1778953833000,-28069.36075181,0.0001293,2]
[422445887,1778953833000,-207.68,0.00012514,2]
[422445893,1778953833000,-20979.80090685,0.00013324,2]
[422445894,1778953833000,-1254.41808677,0.00013324,2]
[422445896,1778953833000,-2513.7237219,0.00013324,2]
[422445897,1778953833000,-1300.0,0.00013324,2]
[422445895,1778953833000,-814.19988441,0.00013324,2]
[422445898,1778953833000,-1207.21815188,0.00013324,2]
[422445899,1778953833000,-164.25,0.00013378,2]
[422445900,1778953833000,-1062.13816996,0.00013384,2]
[422445908,1778953837000,-572.08324074,0.00013384,2]
[422445911,1778953837000,-1097.24928235,0.00013444,2]
[422445909,1778953837000,-1398.62921327,0.00013444,2]
[422445907,1778953837000,-2223.91737825,0.00013384,2]
[422445910,1778953837000,-796.12150438,0.00013444,2]
[422445934,1778953838000,-500.0,0.00013698,2]
[422445936,1778953838000,-500.0,0.00013698,2]
[422445935,1778953838000,-500.0,0.00013698,2]
[422445940,1778953838000,-500.0,0.00013698,2]
[422445933,1778953838000,-500.0,0.00013698,2]
[422445951,1778953838000,-500.0,0.00013698,2]
[422445952,1778953838000,-500.0,0.00013698,2]